fUST/lending_fUST_20250124
["ID","MTS","AMOUNT","RATE_DAILY","PERIOD"]
[350224028,1737706243603,-177.19,0.0002,3]
[350224030,1737706243612,-500.0,0.0002,3]
[350224032,1737706243621,-500.0,0.0002,3]
[350224034,1737706243630,-500.0,0.0002,3]
[350224036,1737706243640,-500.0,0.0002,3]
[350224038,1737706243649,-558.47,0.0002,3]
[350224040,1737706243658,-160.0,0.0002,3]
[350224042,1737706243667,-500.0,0.0002,3]
[350224044,1737706243676,-500.0,0.0002,3]
[350224046,1737706243685,-17629.14,0.0002,3]
[350224048,1737706243694,-1281.23,0.0002,3]
[350224050,1737706243703,-2586.9,0.0002,3]
[350224052,1737706243713,-693.45,0.0002,3]
[350224054,1737706243722,-500.0,0.0002,3]
[350224057,1737706243741,-500.0,0.0002,3]
[350224059,1737706243750,-500.0,0.0002,3]
[350224061,1737706243759,-759.77,0.0002,3]
[350224063,1737706243769,-500.0,0.0002,3]
[350224065,1737706243778,-502.70852878,0.00020021,2]
[350224067,1737706243788,-1000.0,0.00020021,2]
[350224069,1737706243797,-1000.0,0.00020021,2]
[350224071,1737706243806,-4061.33032148,0.000201,2]
[350224073,1737706243815,-151.0,0.000201,3]
[350224075,1737706243825,-500.0,0.00020136,3]
[350224077,1737706243835,-500.0,0.00020136,3]
[350224079,1737706243845,-517.89,0.00020136,3]
[350224092,1737706243957,-511.86,0.00020136,3]
[350224094,1737706243970,-614.84,0.00020136,3]
[350224096,1737706243980,-502.06,0.00020136,3]
[350224099,1737706243990,-296.5,0.00020136,3]
[350224101,1737706243999,-500.0,0.00020136,3]
[350224103,1737706244009,-500.0,0.00020136,3]
[350224105,1737706244019,-500.0,0.00020136,3]
[350224107,1737706244028,-500.0,0.00020136,3]
[350224109,1737706244038,-548.56,0.00020136,2]
[350224111,1737706244048,-5463.49,0.00020136,3]
[350224113,1737706244057,-1225.31,0.00020136,3]
[350224115,1737706244067,-252.25283589,0.00020136,3]
[350224117,1737706244077,-859.29,0.00020136,3]
[350224119,1737706244087,-1863.45,0.00020136,3]
[350224121,1737706244096,-1845.47,0.00020136,3]
[350224123,1737706244105,-660.73,0.00020136,3]
[350224125,1737706244114,-500.0,0.00020136,3]
[350224127,1737706244123,-656.58,0.00020136,3]
[350224129,1737706244132,-346.12,0.00020136,3]
[350224131,1737706244141,-194.3,0.00020136,3]
[350224133,1737706244151,-10408.87,0.00020136,3]
[350224135,1737706244160,-5840.51,0.00020136,3]
[350224137,1737706244169,-3272.46,0.00020136,3]
[350224139,1737706244180,-500.0,0.00020136,3]
[350224141,1737706244189,-500.0,0.00020136,3]
[350224143,1737706244198,-1247.5,0.00020136,3]
[350224145,1737706244207,-1640.87,0.00020136,3]
[350224147,1737706244215,-726.01,0.00020136,3]
[350224149,1737706244225,-1534.54,0.00020136,3]
[350224151,1737706244233,-1043.45,0.00020136,3]
[350224153,1737706244242,-549.2,0.00020136,3]
[350224155,1737706244252,-577.67,0.00020136,3]
[350224157,1737706244261,-508.74,0.00020136,3]
[350224159,1737706244270,-500.0,0.00020136,3]
[350224161,1737706244279,-500.0,0.00020136,3]
[350224163,1737706244288,-500.0,0.00020136,3]
[350224165,1737706244298,-558.47,0.00020136,3]
[350224167,1737706244307,-500.0,0.00020136,3]
[350224169,1737706244317,-500.0,0.00020136,3]
[350224171,1737706244327,-17629.14,0.00020136,3]
[350224173,1737706244336,-1281.23,0.00020136,3]
[350224175,1737706244345,-2586.9,0.00020136,3]
[350224177,1737706244356,-693.45,0.00020136,3]
[350224179,1737706244366,-500.0,0.00020136,3]
[350224181,1737706244376,-500.0,0.00020136,3]
[350224183,1737706244385,-759.77,0.00020136,3]
[350224185,1737706244395,-500.0,0.00020136,3]
[350224187,1737706244404,-1000.0,0.00020147,2]
[350224189,1737706244413,-1255.75636065,0.00020147,2]
[350224191,1737706244422,-500.0,0.00020164,2]
[350224193,1737706244431,-1000.0,0.00020171,2]
[350224195,1737706244441,-3155.55149751,0.000202,2]
[350224197,1737706244450,-13040.50856298,0.000202,2]
[350224199,1737706244459,-151.0,0.000202,3]
[350224201,1737706244468,-500.0,0.00020273,3]
[350224203,1737706244478,-585.29,0.00020273,3]
[350224205,1737706244487,-517.89,0.00020273,3]
[350224207,1737706244497,-511.86,0.00020273,3]
[350224209,1737706244506,-614.84,0.00020273,3]
[350224211,1737706244515,-502.06,0.00020273,3]
[350224213,1737706244524,-444.78,0.00020273,3]
[350224215,1737706244534,-564.79,0.00020273,3]
[350224217,1737706244543,-545.82,0.00020273,3]
[350224219,1737706244553,-500.0,0.00020273,3]
[350224221,1737706244561,-548.56,0.00020273,2]
[350224223,1737706244570,-5463.49,0.00020273,3]
[350224225,1737706244580,-1225.31,0.00020273,3]
[350224227,1737706244589,-859.29,0.00020273,3]
[350224229,1737706244598,-1863.45,0.00020273,3]
[350224231,1737706244610,-1845.47,0.00020273,3]
[350224233,1737706244619,-660.73,0.00020273,3]
[350224235,1737706244628,-500.0,0.00020273,3]
[350224237,1737706244637,-656.58,0.00020273,3]
[350224239,1737706244646,-10408.87,0.00020273,3]
[350224241,1737706244656,-5840.51,0.00020273,3]
[350224243,1737706244665,-3272.46,0.00020273,3]
[350224245,1737706244675,-500.0,0.00020273,3]
[350224247,1737706244684,-500.0,0.00020273,3]
[350224249,1737706244693,-1247.5,0.00020273,3]
[350224251,1737706244702,-1640.87,0.00020273,3]
[350224253,1737706244711,-726.01,0.00020273,3]
[350224255,1737706244720,-1534.54,0.00020273,3]
[350224257,1737706244729,-1043.45,0.00020273,3]
[350224259,1737706244738,-549.2,0.00020273,3]
[350224261,1737706244748,-577.67,0.00020273,3]
[350224263,1737706244757,-500.0,0.00020273,3]
[350224265,1737706244768,-208.06,0.00020273,3]
[350224267,1737706244776,-500.0,0.00020273,3]
[350224269,1737706244785,-558.47,0.00020273,3]
[350224271,1737706244794,-500.0,0.00020273,3]
[350224273,1737706244803,-500.0,0.00020273,3]
[350224275,1737706244813,-17629.14,0.00020273,3]
[350224277,1737706244822,-1281.23,0.00020273,3]
[350224279,1737706244831,-2586.9,0.00020273,3]
[350224281,1737706244840,-693.45,0.00020273,3]
[350224283,1737706244849,-500.0,0.00020273,3]
[350224285,1737706244859,-500.0,0.00020273,3]
[350224287,1737706244868,-759.77,0.00020273,3]
[350224289,1737706244877,-500.0,0.00020273,3]
[350224291,1737706244886,-7445.11,0.000203,2]
[350224293,1737706244895,-395.0,0.00020396,2]
[350224295,1737706244905,-500.0,0.0002041,3]
[350224297,1737706244913,-517.89,0.0002041,3]
[350224299,1737706244924,-511.86,0.0002041,3]
[350224301,1737706244933,-614.84,0.0002041,3]
[350224303,1737706244942,-502.06,0.0002041,3]
[350224305,1737706244950,-500.0,0.0002041,3]
[350224307,1737706244959,-548.56,0.0002041,2]
[350224309,1737706244970,-5463.49,0.0002041,3]
[350224311,1737706244980,-1225.31,0.0002041,3]
[350224313,1737706244989,-859.29,0.0002041,3]
[350224315,1737706244999,-1863.45,0.0002041,3]
[350224317,1737706245012,-1845.47,0.0002041,3]
[350224319,1737706245021,-660.73,0.0002041,3]
[350224321,1737706245031,-500.0,0.0002041,3]
[350224323,1737706245040,-656.58,0.0002041,3]
[350224325,1737706245050,-10408.87,0.0002041,3]
[350224327,1737706245059,-5840.51,0.0002041,3]
[350224329,1737706245068,-3272.46,0.0002041,3]
[350224331,1737706245078,-500.0,0.0002041,3]
[350224333,1737706245088,-500.0,0.0002041,3]
[350224335,1737706245097,-1247.5,0.0002041,3]
[350224337,1737706245107,-1640.87,0.0002041,3]
[350224339,1737706245116,-726.01,0.0002041,3]
[350224341,1737706245125,-1534.54,0.0002041,3]
[350224343,1737706245135,-1043.45,0.0002041,3]
[350224345,1737706245144,-549.2,0.0002041,3]
[350224347,1737706245154,-577.67,0.0002041,3]
[350224349,1737706245163,-500.0,0.0002041,3]
[350224351,1737706245172,-500.0,0.0002041,3]
[350224354,1737706245182,-558.47,0.0002041,3]
[350224356,1737706245191,-500.0,0.0002041,3]
[350224358,1737706245200,-500.0,0.0002041,3]
[350224360,1737706245210,-17629.14,0.0002041,3]
[350224362,1737706245219,-1281.23,0.0002041,3]
[350224364,1737706245228,-2586.9,0.0002041,3]
[350224373,1737706245301,-693.45,0.0002041,3]
[350224375,1737706245310,-500.0,0.0002041,3]
[350224377,1737706245320,-500.0,0.0002041,3]
[350224379,1737706245329,-759.77,0.0002041,3]
[350224381,1737706245339,-500.0,0.0002041,3]
[350224383,1737706245348,-1105.959767,0.000205,2]
[350224385,1737706245358,-150.823,0.00020531,2]
[350224387,1737706245367,-150.307,0.00020531,2]
[350224389,1737706245376,-151.009,0.00020531,2]
[350224391,1737706245386,-259.635,0.00020531,2]
[350224394,1737706245396,-542.695,0.00020531,2]
[350224396,1737706245406,-2055.0,0.00020531,2]
[350224398,1737706245416,-2304.0,0.00020531,2]
[350224400,1737706245425,-393.16,0.00020532,3]
[350224402,1737706245435,-176.0,0.00020536,2]
[350224403,1737706245445,-176.0,0.00020536,2]
[350224404,1737706245455,-176.0,0.00020536,2]
[350224405,1737706245464,-176.0,0.00020536,2]
[350224406,1737706245473,-176.0,0.00020536,2]
[350224407,1737706245483,-176.0,0.00020536,2]
[350224408,1737706245492,-176.0,0.00020536,2]
[350224409,1737706245502,-176.0,0.00020536,2]
[350224410,1737706245512,-176.0,0.00020536,2]
[350224411,1737706245521,-176.0,0.00020536,2]
[350224412,1737706245532,-176.0,0.00020536,2]
[350224413,1737706245541,-176.0,0.00020536,2]
[350224414,1737706245551,-176.0,0.00020536,2]
[350224415,1737706245560,-176.0,0.00020536,2]
[350224417,1737706245569,-176.0,0.00020536,2]
[350224419,1737706245578,-176.0,0.00020536,2]
[350224421,1737706245587,-176.0,0.00020536,2]
[350224423,1737706245597,-176.0,0.00020536,2]
[350224425,1737706245608,-176.0,0.00020536,2]
[350224427,1737706245618,-176.0,0.00020536,2]
[350224429,1737706245627,-176.0,0.00020536,2]
[350224431,1737706245636,-176.0,0.00020536,2]
[350224433,1737706245645,-176.0,0.00020536,2]
[350224435,1737706245654,-176.0,0.00020536,2]
[350224437,1737706245664,-176.0,0.00020536,2]
[350224439,1737706245673,-176.0,0.00020536,2]
[350224441,1737706245683,-176.0,0.00020536,2]
[350224443,1737706245693,-176.0,0.00020536,2]
[350224445,1737706245701,-176.0,0.00020536,2]
[350224447,1737706245711,-176.0,0.00020536,2]
[350224449,1737706245720,-176.0,0.00020536,2]
[350224451,1737706245729,-186.67,0.00020536,2]
[350224453,1737706245738,-500.0,0.00020547,3]
[350224455,1737706245748,-517.89,0.00020547,3]
[350224457,1737706245757,-511.86,0.00020547,3]
[350224459,1737706245766,-614.84,0.00020547,3]
[350224461,1737706245775,-502.06,0.00020547,3]
[350224463,1737706245784,-500.0,0.00020547,3]
[350224465,1737706245793,-548.56,0.00020547,2]
[350224467,1737706245802,-5463.49,0.00020547,3]
[350224469,1737706245812,-1225.31,0.00020547,3]
[350224471,1737706245821,-859.29,0.00020547,3]
[350224473,1737706245830,-1863.45,0.00020547,3]
[350224475,1737706245839,-1845.47,0.00020547,3]
[350224477,1737706245848,-660.73,0.00020547,3]
[350224479,1737706245858,-500.0,0.00020547,3]
[350224481,1737706245867,-656.58,0.00020547,3]
[350224483,1737706245876,-10408.87,0.00020547,3]
[350224485,1737706245886,-5840.51,0.00020547,3]
[350224487,1737706245895,-3272.46,0.00020547,3]
[350224489,1737706245904,-500.0,0.00020547,3]
[350224491,1737706245914,-500.0,0.00020547,3]
[350224493,1737706245924,-1247.5,0.00020547,3]
[350224495,1737706245933,-1640.87,0.00020547,3]
[350224497,1737706245943,-726.01,0.00020547,3]
[350224499,1737706245953,-1534.54,0.00020547,3]
[350224501,1737706245963,-1043.45,0.00020547,3]
[350224503,1737706245975,-549.2,0.00020547,3]
[350224505,1737706245986,-577.67,0.00020547,3]
[350224507,1737706245995,-500.0,0.00020547,3]
[350224509,1737706246003,-500.0,0.00020547,3]
[350224511,1737706246015,-301.84126418,0.00020547,3]
[350224532,1737706246202,-256.62873582,0.00020547,3]
[350224535,1737706246212,-500.0,0.00020547,3]
[350224537,1737706246222,-500.0,0.00020547,3]
[350224539,1737706246231,-2512.93372227,0.00020547,3]
[350224541,1737706246243,-15116.20627773,0.00020547,3]
[350224543,1737706246252,-1281.23,0.00020547,3]
[350224545,1737706246262,-807.7888278,0.00020547,3]
[350224547,1737706246273,-1779.1111722,0.00020547,3]
[350224549,1737706246282,-693.45,0.00020547,3]
[350224551,1737706246291,-500.0,0.00020547,3]
[350224553,1737706246300,-500.0,0.00020547,3]
[350224555,1737706246309,-759.77,0.00020547,3]
[350224557,1737706246319,-500.0,0.00020547,3]
[350224559,1737706246328,-1676.37739278,0.00020584,2]
[350224561,1737706246338,-154.2311524,0.0002063,2]
[350224563,1737706246347,-157.136365,0.00020637,2]
[350224565,1737706246357,-165.647504,0.00020637,2]
[350224567,1737706246366,-500.0,0.00020684,3]
[350224569,1737706246375,-517.89,0.00020684,3]
[350224571,1737706246385,-511.86,0.00020684,3]
[350224573,1737706246394,-614.84,0.00020684,3]
[350224575,1737706246404,-502.06,0.00020684,3]
[350224584,1737706246478,-500.0,0.00020684,3]
[350224586,1737706246490,-299.86,0.00020684,3]
[350224588,1737706246500,-500.0,0.00020684,3]
[350224590,1737706246509,-548.56,0.00020684,2]
[350224592,1737706246519,-500.0,0.00020684,2]
[350224594,1737706246530,-299.86,0.00020684,3]
[350224597,1737706246540,-5463.49,0.00020684,3]
[350224599,1737706246550,-1225.31,0.00020684,3]
[350224601,1737706246559,-859.29,0.00020684,3]
[350224603,1737706246568,-1863.45,0.00020684,3]
[350224604,1737706246578,-1845.47,0.00020684,3]
[350224606,1737706246587,-660.73,0.00020684,3]
[350224608,1737706246596,-500.0,0.00020684,3]
[350224611,1737706246606,-150.65042783,0.00020684,3]
[350224613,1737706246616,-500.0,0.00020684,3]
[350224615,1737706246625,-656.58,0.00020684,3]
[350224617,1737706246634,-500.0,0.00020684,3]
[350224619,1737706246643,-10408.87,0.00020684,3]
[350224621,1737706246654,-5840.51,0.00020684,3]
[350224623,1737706246663,-3272.46,0.00020684,3]
[350224625,1737706246673,-500.0,0.00020684,3]
[350224627,1737706246683,-500.0,0.00020684,3]
[350224629,1737706246693,-1247.5,0.00020684,3]
[350224631,1737706246702,-1640.87,0.00020684,3]
[350224633,1737706246712,-726.01,0.00020684,3]
[350224635,1737706246721,-1534.54,0.00020684,3]
[350224637,1737706246732,-1043.45,0.00020684,3]
[350224639,1737706246742,-549.2,0.00020684,3]
[350224641,1737706246751,-577.67,0.00020684,3]
[350224643,1737706246760,-500.0,0.00020684,3]
[350224645,1737706246769,-399.18,0.00020684,3]
[350224647,1737706246778,-558.47,0.00020684,3]
[350224649,1737706246788,-500.0,0.00020684,3]
[350224651,1737706246797,-500.0,0.00020684,3]
[350224653,1737706246807,-17629.14,0.00020684,3]
[350224655,1737706246816,-1281.23,0.00020684,3]
[350224657,1737706246826,-2586.9,0.00020684,3]
[350224659,1737706246835,-693.45,0.00020684,3]
[350224661,1737706246845,-500.0,0.00020684,3]
[350224663,1737706246854,-500.0,0.00020684,3]
[350224665,1737706246863,-759.77,0.00020684,3]
[350224667,1737706246873,-500.0,0.00020684,3]
[350224668,1737706246882,-299.86,0.00020684,3]
[350224671,1737706246892,-151.01526441,0.00020684,3]
[350224673,1737706246902,-3931.9,0.000207,2]
[350224675,1737706246912,-1475.60561186,0.00020722,2]
[350224677,1737706246922,-1500.0,0.00020722,2]
[350224679,1737706246931,-1696.0830145,0.0002079,2]
[350224681,1737706246941,-5004.80756513,0.000208,4]
[350224683,1737706246950,-500.0,0.00020821,3]
[350224684,1737706246959,-517.89,0.00020821,3]
[350224686,1737706246972,-511.86,0.00020821,3]
[350224688,1737706246981,-614.84,0.00020821,3]
[350224690,1737706246990,-502.06,0.00020821,3]
[350224693,1737706247000,-500.0,0.00020821,3]
[350224695,1737706247013,-548.56,0.00020821,2]
[350224697,1737706247022,-5463.49,0.00020821,3]
[350224699,1737706247031,-1225.31,0.00020821,3]
[350224701,1737706247041,-859.29,0.00020821,3]
[350224702,1737706247052,-1863.45,0.00020821,3]
[350224704,1737706247062,-1845.47,0.00020821,3]
[350224706,1737706247071,-660.73,0.00020821,3]
[350224708,1737706247080,-288.7,0.00020821,3]
[350224710,1737706247089,-656.58,0.00020821,3]
[350224712,1737706247098,-10408.87,0.00020821,3]
[350224714,1737706247109,-5840.51,0.00020821,3]
[350224716,1737706247118,-3272.46,0.00020821,3]
[350224717,1737706247127,-500.0,0.00020821,3]
[350224718,1737706247137,-500.0,0.00020821,3]
[350224719,1737706247146,-1247.5,0.00020821,3]
[350224720,1737706247155,-1640.87,0.00020821,3]
[350224721,1737706247164,-726.01,0.00020821,3]
[350224722,1737706247174,-1534.54,0.00020821,3]
[350224723,1737706247183,-1043.45,0.00020821,3]
[350224724,1737706247192,-549.2,0.00020821,3]
[350224725,1737706247202,-577.67,0.00020821,3]
[350224726,1737706247211,-619.78974547,0.00020821,3]
[350224727,1737706247221,-558.47,0.00020821,3]
[350224728,1737706247230,-500.0,0.00020821,3]
[350224729,1737706247240,-625.71,0.00020821,3]
[350224730,1737706247249,-9228.96296573,0.00020821,3]
[350224742,1737706247560,-610.02460827,0.00019162,3]
[350224751,1737706247635,-1650.70539173,0.00019162,3]
[350224753,1737706247644,-212.30798989,0.00019178,2]
[350224756,1737706247660,-287.69201011,0.00019178,2]
[350224758,1737706247669,-500.0,0.00019315,3]
[350224760,1737706247679,-500.0,0.00019589,3]
[350224762,1737706247688,-500.0,0.00019726,3]
[350224764,1737706247697,-500.0,0.00019863,3]
[350224766,1737706247706,-500.0,0.0002,3]
[350224768,1737706247716,-500.0,0.00020136,3]
[350224770,1737706247725,-500.0,0.00020273,3]
[350224772,1737706247734,-500.0,0.0002041,3]
[350224774,1737706247743,-4521.46,0.00020532,3]
[350224776,1737706247752,-500.0,0.00020547,3]
[350224778,1737706247762,-500.0,0.00020684,3]
[350224780,1737706247772,-8400.17703427,0.00020821,3]
[350224782,1737706247781,-1281.23,0.00020821,3]
[350224784,1737706247790,-2586.9,0.00020821,3]
[350224786,1737706247799,-693.45,0.00020821,3]
[350224788,1737706247808,-500.0,0.00020821,3]
[350224789,1737706247817,-500.0,0.00020821,3]
[350224790,1737706247826,-759.77,0.00020821,3]
[350224791,1737706247836,-500.0,0.00020821,3]
[350224792,1737706247845,-500.0,0.00020821,3]
[350224793,1737706247854,-230.811268,0.00020822,2]
[350224794,1737706247863,-1255.75636065,0.00020839,2]
[350224795,1737706247872,-500.0,0.00020891,2]
[350224796,1737706247881,-500.0,0.00020891,2]
[350224797,1737706247890,-20000.0,0.000209,2]
[350224798,1737706247899,-516.34513738,0.000209,7]
[350224799,1737706247908,-1676.37739274,0.0002092,2]
[350224800,1737706247917,-650.05,0.00020958,3]
[350224801,1737706247926,-501.09024119,0.00020958,2]
[350224802,1737706247936,-500.0,0.00020958,3]
[350224803,1737706247945,-500.0,0.00020958,3]
[350224804,1737706247954,-500.0,0.00020958,3]
[350224805,1737706247965,-517.89,0.00020958,3]
[350224806,1737706247979,-511.86,0.00020958,3]
[350224808,1737706247989,-614.84,0.00020958,3]
[350224809,1737706247999,-502.06,0.00020958,3]
[350224810,1737706248010,-500.0,0.00020958,3]
[350224811,1737706248019,-548.56,0.00020958,2]
[350224812,1737706248031,-2151.89571448,0.00020958,3]
[350224813,1737706248045,-2562.4022144,0.00020958,3]
[350224814,1737706248246,-500.0,0.00019452,3]
[350224815,1737706248256,-500.0,0.00019589,3]
[350224816,1737706248265,-500.0,0.00019726,3]
[350224817,1737706248275,-399.41930936,0.000199,2]
[350224818,1737706248284,-749.19207112,0.00020958,3]
[350224819,1737706248294,-859.29,0.00020958,3]
[350224820,1737706248303,-237.26830688,0.00020958,3]
[350224821,1737706248315,-1626.18169312,0.00020958,3]
[350224822,1737706248325,-660.73,0.00020958,3]
[350224823,1737706248335,-656.58,0.00020958,3]
[350224824,1737706248344,-1200.52505112,0.00020958,3]
[350224825,1737706248501,-399.41930926,0.00020038,2]
[350224826,1737706248511,-399.41930926,0.00020176,2]
[350224827,1737706248520,-399.41930926,0.00020314,2]
[350224828,1737706248530,-399.41930926,0.00020452,2]
[350224829,1737706248540,-399.41930926,0.0002059,2]
[350224830,1737706248550,-9208.34494888,0.00020958,3]
[350224831,1737706248560,-1652.35073285,0.00020958,3]
[350224832,1737706248572,-4188.15926715,0.00020958,3]
[350224833,1737706248583,-3272.46,0.00020958,3]
[350224834,1737706248592,-500.0,0.00020958,3]
[350224835,1737706248601,-500.0,0.00020958,3]
[350224836,1737706248612,-1247.5,0.00020958,3]
[350224837,1737706248622,-1640.87,0.00020958,3]
[350224838,1737706248631,-726.01,0.00020958,3]
[350224839,1737706248641,-1534.54,0.00020958,3]
[350224840,1737706248651,-1043.45,0.00020958,3]
[350224841,1737706248661,-549.2,0.00020958,3]
[350224842,1737706248671,-577.67,0.00020958,3]
[350224843,1737706248739,-558.47,0.00020958,3]
[350224844,1737706248750,-500.0,0.00020958,3]
[350224845,1737706248761,-17629.14,0.00020958,3]
[350224846,1737706248770,-1281.23,0.00020958,3]
[350224847,1737706248781,-2586.9,0.00020958,3]
[350224848,1737706248790,-693.45,0.00020958,3]
[350224849,1737706248800,-500.0,0.00020958,3]
[350224850,1737706248809,-319.43,0.00020958,3]
[350224851,1737706248819,-759.77,0.00020958,3]
[350224852,1737706248829,-500.0,0.00020958,3]
[350224853,1737706248839,-500.0,0.00020958,3]
[350224854,1737706248849,-1000.0,0.00021,21]
[350224855,1737706248859,-3000.0,0.00021,2]
[350224856,1737706248868,-3000.0,0.0002101,2]
[350224857,1737706248877,-3000.0,0.0002102,2]
[350224858,1737706248887,-1500.0,0.00021022,2]
[350224859,1737706248897,-3000.0,0.0002103,2]
[350224860,1737706248906,-3000.0,0.0002104,2]
[350224861,1737706248915,-3000.0,0.0002105,2]
[350224862,1737706248924,-3000.0,0.0002106,2]
[350224863,1737706248934,-3000.0,0.0002107,2]
[350224864,1737706248944,-3000.0,0.0002108,2]
[350224865,1737706248953,-2901.68144579,0.0002109,2]
[350224866,1737706249486,-213.5736152,0.00019,2]
[350224867,1737706249499,-1130.37,0.00019798,3]
[350224868,1737706249520,-399.41930926,0.00020728,2]
[350224869,1737706249533,-399.41930926,0.00020866,2]
[350224870,1737706249551,-399.41930926,0.00021003,2]
[350224871,1737706249564,-98.31855421,0.0002109,2]
[350224872,1737706249579,-500.0,0.00021095,3]
[350224873,1737706249594,-517.89,0.00021095,3]
[350224874,1737706249608,-511.86,0.00021095,3]
[350224875,1737706249621,-614.84,0.00021095,3]
[350224876,1737706249634,-502.06,0.00021095,3]
[350224877,1737706249647,-500.0,0.00021095,3]
[350224878,1737706249661,-548.56,0.00021095,2]
[350224879,1737706249675,-5463.49,0.00021095,3]
[350224880,1737706249689,-1863.45,0.00021095,3]
[350224881,1737706249703,-660.73,0.00021095,3]
[350224882,1737706249714,-656.58,0.00021095,3]
[350224883,1737706249723,-10408.87,0.00021095,3]
[350224884,1737706249733,-5840.51,0.00021095,3]
[350224885,1737706249743,-3272.46,0.00021095,3]
[350224886,1737706249754,-500.0,0.00021095,3]
[350224887,1737706249763,-500.0,0.00021095,3]
[350224888,1737706249772,-1247.5,0.00021095,3]
[350224889,1737706249782,-1640.87,0.00021095,3]
[350224890,1737706249791,-726.01,0.00021095,3]
[350224891,1737706249801,-1534.54,0.00021095,3]
[350224892,1737706249810,-1043.45,0.00021095,3]
[350224893,1737706249819,-549.2,0.00021095,3]
[350224894,1737706249829,-577.67,0.00021095,3]
[350224895,1737706249839,-558.47,0.00021095,3]
[350224896,1737706249849,-500.0,0.00021095,3]
[350224897,1737706249859,-17629.14,0.00021095,3]
[350224898,1737706249868,-1281.23,0.00021095,3]
[350224899,1737706249878,-2586.9,0.00021095,3]
[350224900,1737706249888,-693.45,0.00021095,3]
[350224901,1737706249899,-500.0,0.00021095,3]
[350224902,1737706249908,-759.77,0.00021095,3]
[350224903,1737706249920,-500.0,0.00021095,3]
[350224904,1737706249929,-500.0,0.00021095,3]
[350224905,1737706249940,-1098.57,0.000211,2]
[350224906,1737706250101,-3000.0,0.000211,2]
[350224907,1737706250114,-151.0,0.00021108,2]
[350224908,1737706250123,-151.0,0.00021108,2]
[350224909,1737706250133,-151.0,0.00021108,2]
[350224910,1737706250142,-151.0,0.00021108,2]
[350224911,1737706250151,-151.0,0.00021108,2]
[350224912,1737706250160,-151.0,0.00021108,2]
[350224913,1737706250170,-151.0,0.00021108,2]
[350224914,1737706250179,-151.0,0.00021108,2]
[350224915,1737706250188,-151.0,0.00021108,2]
[350224916,1737706250198,-151.0,0.00021108,2]
[350224917,1737706250208,-151.0,0.00021108,2]
[350224918,1737706250217,-151.0,0.00021108,2]
[350224919,1737706250227,-151.0,0.00021108,2]
[350224920,1737706250236,-151.0,0.00021108,2]
[350224921,1737706250245,-151.0,0.00021108,2]
[350224922,1737706250255,-151.0,0.00021108,2]
[350224923,1737706250265,-151.0,0.00021108,2]
[350224924,1737706250274,-151.0,0.00021108,2]
[350224925,1737706250283,-151.0,0.00021108,2]
[350224926,1737706250293,-151.0,0.00021108,2]
[350224927,1737706250302,-151.0,0.00021108,2]
[350224928,1737706250312,-151.0,0.00021108,2]